bitfinex/quotes_ETHUSD_20241108
["timestamp","ask_amount","ask_price","bid_price","bid_amount"]
[1731100891972,1.05971505,2920.2,2919.7,3.28995433]
[1731100891973,1.5014767,2920.2,2919.7,3.28995433]
[1731100892122,0.795,2920.2,2919.8,0.38399543]
[1731100893537,0.795,2920.2,2919.8,3.38399543]
[1731100894945,0.795,2920.2,2919.9,0.06848842]
[1731100895144,0.77499787,2920.5,2919.9,0.06848842]
[1731100895145,0.795,2920.4,2919.9,0.06848842]
[1731100895470,0.795,2920.4,2919.8,3.38399543]
[1731100895471,1.5014767,2920.4,2919.8,3.38399543]
[1731100895672,0.58526925,2920.3,2919.9,0.66739498]
[1731100895971,1.5014767,2920.4,2919.9,0.66739498]
[1731100896332,0.58546385,2920.3,2919.9,0.66739498]
[1731100896537,1.5014767,2920.4,2919.9,0.66739498]
[1731100896759,0.58547719,2920.3,2919.9,0.66739498]
[1731100896968,0.7064767,2920.4,2919.9,0.66739498]
[1731100897131,0.7064767,2920.4,2919.2,3.0]
[1731100897132,0.7064767,2920.0,2919.2,3.0]
[1731100897338,1.65317823,2920.0,2919.2,3.0]
[1731100897535,0.58553628,2919.9,2919.2,3.0]
[1731100897884,0.77499787,2920.0,2919.2,3.0]
[1731100898233,0.7064767,2920.0,2919.3,0.55]
[1731100898573,0.7064767,2920.0,2919.4,0.355]
[1731100898748,1.5848861,2920.0,2919.4,0.355]
[1731100899134,0.7676,2919.8,2919.4,0.355]
[1731100899636,0.6539828,2919.7,2918.8,4.11385433]
[1731100899985,0.77499787,2919.7,2918.8,4.11385433]
[1731100900146,13.7929534,2920.0,2919.6,3.28995433]
[1731100900147,13.0864767,2920.0,2919.6,3.28995433]
[1731100900482,1.84541505,2920.1,2919.3,3.28995433]
[1731100900483,1.4921767,2920.1,2919.3,3.28995433]
[1731100900785,2.23866694,2920.0,2919.4,3.0]
[1731100901081,0.58546688,2919.9,2919.4,3.0]
[1731100901377,1.58464435,2919.9,2919.4,3.0]
[1731100901537,3.02426836,2919.8,2919.1,3.0]
[1731100901740,0.58544391,2919.7,2919.1,3.0]
[1731100902067,1.56069787,2919.8,2919.1,3.70489543]
[1731100902240,1.46360441,2919.7,2919.1,3.70489543]
[1731100902438,1.56069787,2919.8,2919.1,3.70489543]
[1731100902646,0.58541917,2919.7,2919.1,3.70489543]
[1731100902951,1.58454508,2919.7,2919.2,0.84388994]
[1731100903150,0.7064767,2919.8,2919.3,3.83995433]
[1731100903350,1.48147457,2920.1,2919.4,3.06849953]
[1731100903351,0.7064767,2919.9,2919.4,3.06849953]
[1731100903568,0.7064767,2920.0,2919.4,3.06849953]
[1731100903752,1.84541505,2920.1,2919.6,0.55]
[1731100903753,0.7064767,2920.1,2919.6,0.55]
[1731100904078,0.58525697,2920.0,2919.6,0.55]
[1731100904374,0.7064767,2920.2,2919.6,0.55]
[1731100904541,2.16988705,2920.1,2919.6,0.55]
[1731100904744,0.7064767,2920.2,2919.6,0.55]
[1731100905054,1.4631242,2920.1,2919.7,0.19998454]
[1731100905252,0.7064767,2920.2,2919.7,0.19998454]
[1731100905455,1.46299427,2920.1,2919.7,0.19998454]
[1731100905660,0.7064767,2920.2,2919.7,0.19998454]
[1731100905947,1.46297231,2920.1,2919.7,0.19998454]
[1731100906149,0.7064767,2920.2,2919.7,0.19998454]
[1731100906337,1.4629689,2920.1,2919.7,0.19998454]
[1731100906537,0.7064767,2920.2,2919.7,0.19998454]
[1731100906748,0.58518545,2920.1,2919.7,0.19998454]
[1731100906957,0.7064767,2920.2,2919.7,0.19998454]
[1731100907158,0.58518925,2920.1,2919.7,0.19998454]
[1731100907345,0.7064767,2920.2,2919.7,0.19998454]
[1731100907546,0.58517511,2920.1,2919.7,0.19998454]
[1731100907784,0.7064767,2920.2,2919.7,0.19998454]
[1731100907941,0.7064767,2920.3,2919.8,0.47248381]
[1731100908146,0.58517602,2920.2,2919.8,0.47248381]
[1731100908444,0.7064767,2920.3,2919.8,0.47248381]
[1731100908691,0.58516382,2920.2,2919.8,0.40399389]
[1731100908993,0.7064767,2920.3,2919.9,0.36039784]
[1731100909152,0.58498905,2920.2,2919.9,0.36039784]
[1731100909353,0.77499787,2920.3,2919.9,0.36039784]
[1731100909579,0.58489473,2920.2,2919.8,0.40399389]
[1731100909757,1.58379249,2920.2,2919.7,3.19998454]
[1731100909962,0.584868,2920.1,2919.7,3.19998454]
[1731100910161,0.7064767,2920.2,2919.7,3.19998454]
[1731100910485,0.58487057,2920.1,2919.7,3.19998454]
[1731100910790,0.77499787,2920.3,2919.7,3.19998454]
[1731100910947,0.58495723,2920.2,2919.7,3.19998454]
[1731100911143,0.77499787,2920.3,2919.7,3.19998454]
[1731100911344,0.58497192,2920.2,2919.7,3.19998454]
[1731100911576,0.77499787,2920.3,2919.7,3.19998454]
[1731100911784,0.58497162,2920.2,2919.7,3.19998454]
[1731100911971,0.77499787,2920.3,2919.7,3.19998454]
[1731100912287,1.46239941,2920.2,2919.7,3.19998454]
[1731100912461,0.77499787,2920.3,2919.8,0.70399389]
[1731100912664,1.46233883,2920.2,2919.8,0.70399389]
[1731100912864,0.77499787,2920.3,2919.8,0.70399389]
[1731100913063,0.58496424,2920.2,2919.8,0.70399389]
[1731100913266,0.77499787,2920.3,2919.8,0.70399389]
[1731100913589,0.585051,2920.2,2919.8,0.70399389]
[1731100913789,0.77499787,2920.3,2919.9,0.39039784]
[1731100913950,0.58507694,2920.2,2919.9,0.39039784]
[1731100914153,0.77499787,2920.3,2919.9,0.39039784]
[1731100914360,2.16921636,2920.2,2919.9,0.39039784]
[1731100914567,0.58515366,2920.1,2919.9,0.39039784]
[1731100914785,0.7064767,2920.2,2919.9,0.39039784]
[1731100914991,0.58519515,2920.1,2919.9,0.39039784]
[1731100915154,0.7064767,2920.2,2919.9,0.39039784]
[1731100915355,0.58525981,2920.1,2919.9,0.39039784]
[1731100915552,0.7064767,2920.2,2919.9,0.39039784]
[1731100915756,0.87798459,2920.2,2919.9,0.39039784]
[1731100915989,0.77499787,2920.3,2919.9,0.39039784]
[1731100916195,1.46340303,2920.2,2919.8,0.70399389]
[1731100916494,1.46340303,2920.2,2919.7,3.19998454]
[1731100916495,0.58536121,2920.1,2919.7,0.19998454]
[1731100916806,0.7064767,2920.2,2919.7,0.19998454]
[1731100917100,1.58449917,2920.2,2919.7,0.19998454]
[1731100917259,0.77499787,2920.3,2919.7,0.19998454]
[1731100917457,2.16980911,2920.2,2919.6,0.55]
[1731100917657,0.06852117,2920.3,2918.7,0.7243999]
[1731100917658,3.04089609,2920.1,2919.1,3.28995433]
[1731100917861,2.16976833,2920.0,2919.2,4.3223]
[1731100918055,0.7064767,2920.0,2919.2,4.3223]
[1731100918261,0.58530258,2919.9,2919.4,0.55]
[1731100918493,1.93083622,2920.1,2919.4,0.55]
[1731100918494,1.57759787,2920.1,2919.4,0.55]
[1731100918659,0.58533917,2920.0,2919.4,0.55]
[1731100918999,0.87800553,2920.0,2919.4,0.55]
[1731100919165,0.58543279,2919.9,2919.4,0.55]
[1731100919367,0.7064767,2920.0,2919.4,1.05835254]
[1731100919701,0.58544426,2919.9,2919.4,1.05835254]
[1731100919860,0.7064767,2920.0,2919.4,1.05835254]
[1731100920064,0.5854438,2919.9,2919.4,1.05835254]
[1731100920261,0.7064767,2920.0,2919.4,1.05835254]
[1731100920470,0.58544185,2919.9,2919.4,1.05835254]
[1731100920700,0.7064767,2920.0,2919.4,1.05835254]
[1731100920873,0.5853799,2919.9,2919.4,1.05835254]
[1731100921074,0.7064767,2920.0,2919.4,1.05835254]
[1731100921296,1.46383125,2919.9,2919.4,1.05835254]
[1731100921497,0.7064767,2920.0,2919.4,1.05835254]
[1731100921669,0.58554753,2919.9,2919.4,1.05835254]
[1731100922002,0.7064767,2920.0,2919.5,0.1819578]
[1731100922163,1.46390051,2919.9,2919.5,0.1819578]
[1731100922469,0.7064767,2920.0,2919.6,0.8299]
[1731100922674,0.7064767,2920.2,2919.8,3.55]
[1731100922883,0.7064767,2920.4,2920.1,3.28995433]
[1731100923265,0.5858298,2920.3,2920.1,3.28995433]
[1731100923464,0.7064767,2920.6,2920.1,3.28995433]
[1731100923797,2.17127915,2920.5,2920.1,3.28995433]
[1731100924008,0.58592098,2920.4,2920.2,0.32899543]
[1731100924296,0.7064767,2920.5,2920.2,0.32899543]
[1731100924461,0.7064767,2920.5,2920.2,0.39747644]
[1731100924669,0.7064767,2920.6,2920.4,7.09935433]
[1731100924866,0.7064767,2920.8,2920.5,3.70993543]
[1731100925092,0.58601932,2920.7,2920.5,3.70993543]
[1731100925288,0.7064767,2920.9,2920.5,3.70993543]
[1731100925498,0.58611874,2920.8,2920.5,3.70993543]
[1731100925799,0.7064767,2921.1,2920.8,3.8094]
[1731100925971,0.7064767,2921.2,2921.0,3.28995433]
[1731100926171,0.58589622,2921.1,2921.0,6.28995433]
[1731100926372,0.58589622,2921.1,2920.8,0.87786532]
[1731100926373,0.7064767,2921.3,2920.8,3.0]
[1731100926683,0.7064767,2921.3,2920.5,0.8094]
[1731100926684,0.7064767,2921.1,2920.5,3.8094]
[1731100926884,1.4641832,2921.0,2920.5,3.0]
[1731100927211,1.4641832,2921.0,2920.1,3.28995433]
[1731100927212,0.7629,2920.8,2920.1,3.28995433]
[1731100927412,0.06852117,2920.7,2920.1,3.28995433]
[1731100928511,0.06852117,2920.7,2920.2,3.0]
[1731100929906,1.53789787,2920.8,2920.2,3.0]
[1731100930076,0.58542625,2920.7,2920.2,3.06847933]
[1731100930467,1.4693767,2920.8,2920.2,3.06847933]
[1731100930865,0.585408,2920.7,2920.2,3.06847933]
[1731100931121,1.4693767,2920.8,2920.2,3.06847933]
[1731100931323,0.58546763,2920.7,2920.2,3.06847933]
[1731100931523,1.4693767,2920.8,2920.3,0.63584337]
[1731100931732,0.7629,2920.8,2920.3,0.63584337]
[1731100931938,1.4693767,2920.8,2920.3,0.63584337]
[1731100932112,1.4693767,2920.8,2920.2,3.06847933]
[1731100932308,0.58559431,2920.7,2920.2,3.06847933]
[1731100935848,0.58559431,2920.7,2920.4,3.28995433]
[1731100936135,0.58559431,2920.7,2920.6,1.3429]
[1731100937410,0.58559431,2920.7,2920.6,0.55]
[1731100937615,0.58559431,2920.7,2920.6,1.31622543]
[1731100940253,0.58559431,2920.7,2920.5,3.0]
[1731100941362,0.7064767,2921.0,2920.5,3.0]
[1731100941558,0.7903,2920.8,2920.5,3.0]
[1731100941727,0.7903,2920.8,2920.5,2.95]
[1731100943416,0.7064767,2921.0,2920.5,2.95]
[1731100943770,0.87777165,2921.0,2920.6,0.69247313]
[1731100943910,1.4925767,2921.1,2920.6,0.69247313]
[1731100944111,1.4925767,2921.1,2920.5,2.95]
[1731100944112,0.58513926,2921.0,2920.5,2.95]
[1731100944306,0.7064767,2921.0,2920.5,2.95]
[1731100944540,1.56109787,2921.1,2920.5,2.95]
[1731100944729,0.585038,2921.0,2920.5,2.95]
[1731100945345,1.58425013,2921.0,2920.5,2.95]
[1731100945551,0.58519237,2920.9,2920.5,2.95]
[1731100945733,1.56109787,2921.1,2920.5,2.95]
[1731100945947,2.16952488,2921.0,2920.5,2.95]
[1731100946139,0.7064767,2921.0,2920.5,2.95]
[1731100946453,0.65378189,2920.9,2920.2,0.55]
[1731100946656,1.46315629,2920.8,2920.2,3.55]
[1731100946857,0.58522751,2920.7,2920.2,3.55]
[1731100947217,0.8036,2920.6,2920.2,0.55]
[1731100947438,0.8036,2920.6,2920.1,0.7745]
[1731100947748,0.06852117,2920.5,2919.8,4.07835433]
[1731100947956,0.06852117,2920.5,2919.8,1.20980988]
[1731100948153,0.7647,2920.3,2919.3,3.28995433]
[1731100948354,0.06852117,2920.2,2919.3,3.28995433]
[1731100948569,2.16978745,2920.1,2919.3,3.28995433]
[1731100948766,0.65384547,2920.0,2919.3,3.69778976]
[1731100949067,0.06852117,2920.0,2919.3,3.69778976]
[1731100949955,1.65306409,2920.0,2919.3,3.69778976]
[1731100950123,0.58537466,2919.9,2919.3,3.69778976]
[1731100950320,0.7624,2919.8,2919.3,3.69778976]
[1731100950532,0.7624,2919.8,2919.1,0.7884]
[1731100950533,0.06852117,2919.7,2919.1,0.7884]
[1731100950987,1.53739787,2919.8,2919.1,0.7884]
[1731100951335,1.4688767,2919.8,2919.2,0.06850432]
[1731100951538,0.7624,2919.8,2919.2,0.06850432]
[1731100953140,0.06852117,2919.7,2919.1,3.0]
[1731100953989,0.782,2919.6,2918.4,0.7888]
[1731100954189,0.782,2919.4,2918.1,0.7888]
[1731100954338,0.782,2919.2,2918.1,1.19667543]
[1731100954541,0.65362813,2919.1,2918.1,1.19667543]
[1731100954792,0.65362813,2919.1,2917.3,1.08159985]
[1731100954793,0.7921,2918.9,2917.5,0.8197]
[1731100954944,0.7921,2918.7,2917.5,0.8197]
[1731100955140,0.7921,2918.5,2917.4,3.28995433]
[1731100955340,2.15203852,2918.4,2917.4,3.28995433]
[1731100955597,0.86062117,2918.4,2917.4,0.41096543]
[1731100955881,0.8219,2918.3,2917.2,0.8197]
[1731100956177,0.06852117,2918.2,2917.4,3.28995433]
[1731100956390,0.8219,2918.1,2917.4,3.28995433]
[1731100956595,0.06852117,2918.0,2917.4,3.28995433]
[1731100957272,0.06852117,2918.0,2917.2,3.28995433]
[1731100957458,0.06852117,2918.0,2917.2,3.61894976]
[1731100957849,0.8219,2918.1,2917.5,3.28995433]
[1731100958154,0.06852117,2918.0,2917.4,3.0]
[1731100958398,0.06852117,2918.0,2917.3,0.55]
[1731100958991,0.06852117,2918.0,2917.1,3.28995433]
[1731100959148,0.06852117,2918.0,2917.2,0.55]
[1731100959349,0.06852117,2918.0,2917.2,0.61855037]
[1731100959547,0.06852117,2918.0,2917.2,1.00940084]
[1731100960080,0.06852117,2918.0,2917.2,0.94085047]
[1731100960276,0.06852117,2918.0,2917.2,3.55]
[1731100960458,0.06852117,2918.0,2917.2,3.61855032]
[1731100960659,0.06852117,2918.0,2917.2,3.55]
[1731100961077,0.06852117,2918.0,2917.4,3.28995433]
[1731100961272,0.06852117,2918.0,2917.2,0.55]
[1731100962197,0.06852117,2918.0,2917.4,3.28995433]
[1731100962377,0.8219,2918.1,2917.4,3.28995433]
[1731100962895,0.8219,2918.1,2917.7,3.28995433]
[1731100963267,0.8219,2918.1,2917.5,3.0]
[1731100963478,0.8219,2918.1,2917.5,3.06854453]
[1731100963897,0.8219,2918.1,2917.6,0.55]
[1731100964104,0.8219,2918.1,2917.7,3.28995433]
[1731100965151,0.8219,2918.1,2917.7,3.35849416]
[1731100965674,0.8219,2918.1,2917.6,0.55]
[1731100966691,0.8219,2918.1,2917.7,3.35849417]
[1731100966991,0.8219,2918.1,2917.8,0.55]
[1731100968583,0.8219,2918.1,2917.7,3.28995433]
[1731100968796,0.8219,2918.1,2917.4,4.07345433]
[1731100968999,0.8219,2918.1,2917.2,3.0]
[1731100969185,0.06852117,2918.0,2917.2,3.0]
[1731100969756,0.06852117,2918.0,2917.2,3.62899543]
[1731100970062,0.06852117,2918.0,2917.2,3.69754584]
[1731100970255,0.06852117,2918.0,2917.4,3.28995433]
[1731100972197,0.8219,2918.1,2917.4,3.28995433]
[1731100972354,0.06852117,2918.0,2917.4,3.28995433]
[1731100972555,0.06852117,2918.0,2917.4,3.74914354]
[1731100972792,0.8219,2918.1,2917.7,3.28995433]
[1731100973588,0.8219,2918.1,2917.5,3.55]
[1731100974099,0.06852117,2918.0,2917.5,3.55]
[1731100974599,0.8119,2917.9,2917.0,3.28995433]
[1731100974799,0.06852117,2917.8,2917.3,3.28995433]
[1731100975656,0.8119,2917.9,2917.3,3.28995433]
[1731100976293,0.8119,2917.7,2917.0,3.61894976]
[1731100976591,0.8119,2917.7,2917.0,3.28995433]
[1731100976592,0.06852117,2917.6,2917.0,3.28995433]
[1731100979592,0.06852117,2917.6,2917.1,3.0]
[1731100980362,0.8119,2917.7,2917.1,3.0]
[1731100984873,0.8197,2918.1,2917.3,3.28995433]
[1731100985073,0.8197,2918.1,2917.6,3.28995433]
[1731100986999,0.06852117,2918.6,2917.9,3.28995433]
[1731100987217,0.8001,2918.8,2917.9,3.28995433]
[1731100987504,0.06852117,2918.7,2917.9,3.28995433]
[1731100987883,0.06852117,2918.7,2918.0,3.0]
[1731100989079,0.06852117,2918.7,2918.0,3.06853329]
[1731100989880,0.06852117,2918.7,2918.0,3.0]
[1731100990076,0.06852117,2918.7,2918.2,3.28995433]
[1731100990678,0.7911,2918.6,2917.1,3.28995433]
[1731100990879,0.7811,2918.4,2917.2,0.32899543]
[1731100991081,12.39,2918.6,2917.2,0.32899543]
[1731100991082,0.84962117,2918.3,2917.2,0.32899543]
[1731100991471,0.01,2917.8,2916.1,0.10571615]
[1731100991673,0.7811,2917.7,2916.2,3.42782803]
[1731100991881,0.7811,2917.5,2916.2,3.42782803]
[1731100992182,0.01,2917.8,2916.2,3.42782803]
[1731100992183,0.84622117,2917.4,2916.2,3.42782803]
[1731100992421,0.84622117,2917.4,2916.3,0.35335442]
[1731100992784,0.84622117,2917.4,2916.3,3.0]
[1731100993623,0.84622117,2917.4,2916.3,3.06857218]
[1731100994507,0.84622117,2917.4,2916.5,3.28995433]
[1731100995823,0.84622117,2917.4,2916.3,0.06857218]
[1731100996031,0.84622117,2917.4,2916.4,3.0]
[1731100996197,0.84622117,2917.4,2916.4,3.64964002]
[1731100997629,13.22622117,2917.4,2916.4,3.64964002]
[1731100997784,13.1577,2917.4,2916.4,3.64964002]
[1731100997984,0.06852117,2917.3,2916.4,3.64964002]
[1731100998430,0.06852117,2917.3,2916.5,0.55]
[1731100998637,0.06852117,2917.3,2916.6,0.419964]
[1731100998787,0.06852117,2917.3,2916.4,3.64964002]
[1731100999096,0.06852117,2917.3,2916.4,0.64964002]
[1731100999432,0.7552,2917.2,2916.3,3.28995433]
[1731100999725,0.06852117,2917.1,2916.3,3.3585254]
[1731101002723,0.06852117,2917.1,2916.3,3.28995433]
[1731101003786,0.8298,2917.0,2916.2,0.1378737]
[1731101003987,0.06852117,2916.9,2916.2,0.1378737]
[1731101004233,0.06852117,2916.9,2916.2,0.79122812]
[1731101006740,0.7679,2916.8,2916.2,0.79122812]
[1731101006950,0.7679,2916.8,2916.2,0.1378737]
[1731101010413,0.77198817,2916.7,2916.2,0.1378737]
[1731101010607,0.58173357,2916.6,2916.2,0.1378737]
[1731101010809,0.88832117,2916.5,2916.2,0.1378737]
[1731101011438,0.703467,2916.3,2916.2,0.1378737]
[1731101011637,2.32991825,2916.3,2916.2,0.1378737]
[1731101011798,3.03338525,2916.3,2916.2,0.1378737]
[1731101011997,2.32991825,2916.3,2916.2,0.1378737]
[1731101012239,0.8127,2916.2,2914.7,0.625]
[1731101012405,0.8043,2915.9,2914.7,0.625]
[1731101012613,0.8043,2915.7,2914.7,3.91495433]
[1731101012806,0.8043,2915.7,2914.8,0.39149543]
[1731101012807,0.06852117,2915.6,2914.8,0.39149543]
[1731101013199,0.8043,2915.7,2914.9,0.06860916]
[1731101013626,0.06852117,2915.6,2914.8,3.39149543]
[1731101014644,0.06852117,2915.6,2914.8,3.46010364]
[1731101015142,0.06852117,2915.6,2914.8,0.46010364]
[1731101016342,0.06852117,2915.6,2914.9,0.5000058]
[1731101017550,0.8043,2915.7,2915.0,0.06860817]
[1731101018332,0.8043,2915.7,2914.9,0.5000058]
[1731101021553,0.8043,2915.7,2915.1,0.55]
[1731101021760,0.7526,2916.2,2915.4,0.55]
[1731101021971,0.82112117,2916.2,2915.4,0.55]
[1731101022257,0.7526,2916.2,2915.4,0.55]
[1731101022874,0.7773,2916.0,2915.3,0.55]
[1731101023248,0.7773,2916.0,2915.2,0.45924543]
[1731101023562,0.7567,2915.8,2915.2,0.45924543]
[1731101023739,0.06852117,2915.7,2914.9,0.5000058]
[1731101024660,0.7567,2915.8,2914.9,0.5000058]
[1731101027349,12.38,2916.4,2914.7,0.625]
[1731101027350,0.7593,2915.6,2914.7,0.625]
[1731101027648,0.06852117,2915.5,2914.7,0.625]
[1731101027845,0.7593,2915.4,2914.7,0.625]
[1731101028050,0.06852117,2915.3,2914.7,3.625]
[1731101028256,0.7593,2915.4,2914.7,4.38510753]
[1731101029072,0.7593,2915.4,2914.7,5.18170753]
[1731101030484,0.7593,2915.4,2914.8,0.55]
[1731101030665,0.7593,2915.4,2914.9,0.06860286]
[1731101030868,0.06852117,2915.9,2914.9,3.35855719]
[1731101030869,0.8072,2915.8,2914.9,3.35855719]
[1731101031095,0.06852117,2915.7,2915.1,0.55]
[1731101031781,0.8072,2915.8,2915.1,0.06859792]
[1731101032081,0.8072,2915.8,2915.2,3.83995433]
[1731101032287,0.8072,2915.8,2915.3,0.06859543]
[1731101032768,0.06852117,2916.4,2915.5,3.28995433]
[1731101032970,0.7659,2916.3,2915.6,0.87899543]
[1731101034453,0.7659,2916.3,2916.0,3.28995433]
[1731101034789,0.8019,2917.0,2916.0,3.28995433]
[1731101035080,12.38,2917.2,2916.0,3.28995433]
[1731101035081,0.87042117,2916.9,2916.0,3.28995433]
[1731101035486,0.87042117,2916.9,2916.1,0.32899543]
[1731101036780,0.87042117,2916.9,2916.2,0.06857461]
[1731101038805,0.06852117,2916.9,2916.2,0.06857461]
[1731101038965,1.40693401,2917.6,2916.2,0.06857461]
[1731101038966,1.40784134,2918.6,2918.2,0.7952]
[1731101039171,0.8089,2920.1,2918.7,0.7852]
[1731101039348,0.8089,2920.1,2919.2,3.28995433]
[1731101039699,0.8089,2920.1,2918.9,3.0]
[1731101040188,0.8089,2920.1,2919.2,3.28995433]
[1731101040416,0.8089,2920.1,2919.2,3.35845843]
[1731101040684,0.8089,2920.1,2919.2,3.28995433]
[1731101040893,0.8089,2920.1,2919.2,3.35845841]
[1731101041056,0.8089,2920.1,2919.8,3.28995433]
[1731101041389,0.8089,2920.1,2920.0,4.04695393]
[1731101042361,0.8041,2920.9,2920.0,4.04695393]
[1731101043286,0.8041,2920.9,2919.5,0.06849441]
[1731101043287,0.8041,2920.9,2920.4,4.04695393]
[1731101044058,0.8041,2920.9,2920.8,4.04695393]
[1731101044676,0.05136825,2921.0,2920.8,4.04695393]
[1731101045296,0.8032,2921.8,2920.8,4.45164932]
[1731101045614,0.8032,2921.8,2921.2,4.04695393]
[1731101047776,0.7661,2922.3,2921.6,4.04695393]
[1731101047973,0.7761,2922.3,2920.9,0.8134]
[1731101048193,0.7761,2922.3,2921.2,4.04695393]
[1731101050203,0.8021,2922.1,2921.2,4.04695393]
[1731101051177,0.8021,2922.1,2920.8,7.04695393]
[1731101052614,0.8014,2921.8,2920.3,4.04695393]
[1731101052824,0.7692,2921.7,2920.3,4.04695393]
[1731101053008,0.22918829,2921.6,2920.3,4.04695393]
[1731101053577,0.8292,2921.5,2920.3,4.04695393]
[1731101054222,0.8292,2921.5,2920.4,3.0]
[1731101055315,0.01,2921.1,2919.5,4.04695393]
[1731101055517,0.8308,2920.9,2919.5,4.04695393]
[1731101055702,0.8308,2920.7,2919.2,0.7756]
[1731101055905,0.8308,2920.7,2919.1,4.04695393]
[1731101056785,0.8308,2920.7,2919.2,0.06850053]
[1731101057113,0.8308,2920.7,2919.2,3.06850053]
[1731101057314,0.8308,2920.7,2919.2,3.0]
[1731101057523,0.7703,2920.5,2919.2,3.0]
[1731101058826,0.7703,2920.5,2919.3,0.06850015]
[1731101059318,0.7703,2920.5,2919.2,3.0]
[1731101063195,0.7703,2920.5,2918.5,0.13470522]
[1731101063196,0.7618,2922.2,2920.5,4.3123]
[1731101063495,0.7618,2922.2,2920.7,0.55]
[1731101063707,0.7818,2922.2,2920.6,7.04695393]
[1731101064320,0.01,2922.1,2920.6,7.04695393]
[1731101064493,0.7746,2922.0,2920.6,7.04695393]
[1731101064910,0.7846,2923.1,2921.1,3.785]
[1731101065115,0.01,2922.7,2921.3,4.04695393]
[1731101065296,0.83,2922.6,2921.3,4.04695393]
[1731101065626,0.83,2922.6,2921.4,0.06845266]
[1731101066326,0.01,2923.1,2921.8,3.55]
[1731101066327,0.7505,2923.1,2921.8,3.55]
[1731101067033,0.7505,2923.1,2921.9,0.06844097]
[1731101067328,0.7505,2923.1,2921.8,3.0]
[1731101067631,0.7605,2923.1,2921.8,3.0]
[1731101067991,0.7505,2923.1,2921.8,3.70469539]
[1731101068191,0.7505,2923.1,2921.9,0.06843994]
[1731101068626,0.7505,2923.1,2921.8,3.70469539]
[1731101068804,0.7505,2923.1,2921.7,4.04695393]
[1731101068999,12.38,2923.0,2921.7,4.04695393]
[1731101069308,0.7938,2922.9,2921.7,4.04695393]
[1731101071512,0.7938,2922.9,2921.8,0.55]
[1731101071714,0.7938,2922.9,2921.7,4.04695393]
[1731101071934,1.31738,2922.8,2921.7,4.04695393]
[1731101073649,0.7842,2922.7,2921.6,0.06844475]
[1731101073817,0.8042,2922.7,2920.9,4.04695393]
[1731101074142,0.7842,2922.5,2920.9,4.04695393]
[1731101075004,0.7842,2922.5,2921.1,0.55]
[1731101075336,0.7842,2922.5,2921.2,0.06845472]
[1731101075539,0.7842,2922.5,2921.4,3.55]
[1731101075735,0.7842,2922.5,2921.5,0.06844675]
[1731101075911,1.3376358,2922.4,2921.5,0.06844675]
[1731101076116,0.7842,2922.5,2921.5,0.06844675]
[1731101076451,0.7842,2922.5,2921.7,4.04695393]
[1731101076818,0.7842,2922.5,2921.8,0.55]
[1731101077139,0.7842,2922.5,2921.8,3.55]
[1731101077341,0.7842,2922.5,2922.1,4.04695393]
[1731101077543,0.0513391,2923.2,2922.1,4.04695393]
[1731101077544,0.7958,2923.1,2922.1,4.04695393]
[1731101078741,0.7958,2923.1,2921.8,3.0]
[1731101078909,0.7958,2923.1,2921.7,4.04695393]
[1731101078910,0.8058,2923.1,2921.7,4.04695393]
[1731101079809,0.7958,2923.1,2921.8,0.55]
[1731101082847,0.02,2922.9,2920.6,2.08254137]
[1731101083037,3.0513391,2923.2,2920.5,4.04695393]
[1731101083038,0.7841,2922.4,2920.5,4.04695393]
[1731101083236,0.7841,2922.4,2920.9,4.04695393]
[1731101083469,0.7841,2922.4,2920.9,4.45164932]
[1731101083647,0.7841,2922.4,2921.3,4.04695393]
[1731101083849,0.7841,2922.4,2921.4,0.06844641]
[1731101084660,0.7841,2922.4,2921.4,0.06844949]
[1731101084885,0.7841,2922.4,2921.5,0.55]
[1731101085172,0.7841,2922.4,2921.6,0.0684434]
[1731101085372,0.7841,2922.4,2921.6,0.43028774]
[1731101085889,0.7841,2922.4,2921.6,0.36184434]
[1731101086178,0.7841,2922.4,2921.6,0.43028775]
[1731101087751,0.7841,2922.4,2921.6,0.36184434]
[1731101088351,0.7841,2922.4,2921.7,0.06844224]
[1731101088739,0.7841,2922.4,2921.5,0.55]
[1731101089252,0.7841,2922.4,2921.5,1.30969539]
[1731101089572,0.7841,2922.4,2921.6,0.0684434]
[1731101090083,0.7841,2922.4,2921.5,1.30969539]
[1731101090252,0.7841,2922.4,2921.6,0.0684434]
[1731101091080,0.7841,2922.4,2921.5,1.30969539]
[1731101092078,0.7841,2922.4,2921.6,0.0684455]
[1731101092280,0.7841,2922.4,2921.5,1.30969539]
[1731101092843,0.7841,2922.4,2921.5,0.75969539]
[1731101094081,0.7841,2922.4,2921.6,0.0684476]
[1731101094242,0.7841,2922.4,2921.5,0.75969539]
[1731101095343,0.7841,2922.4,2921.4,3.0]
[1731101096369,0.7841,2922.4,2921.4,3.0684518]
[1731101096885,0.7841,2922.4,2921.4,3.0]
[1731101097059,0.7841,2922.4,2921.4,3.06845179]
[1731101097665,0.7841,2922.4,2921.4,3.0]
[1731101097882,0.7841,2922.4,2921.4,3.06845177]
[1731101099086,0.7841,2922.4,2921.4,3.77999234]
[1731101099385,0.7841,2922.4,2921.4,0.77999234]
[1731101099585,0.7841,2922.4,2921.4,0.06845177]
[1731101099988,0.7841,2922.4,2921.3,3.0]
[1731101100348,0.7841,2922.4,2921.4,0.06845174]
[1731101101987,0.7841,2922.4,2921.3,3.0]
[1731101102389,0.7841,2922.4,2921.0,0.55]
[1731101103599,0.7841,2922.4,2920.9,3.40469539]
[1731101104275,0.7841,2922.4,2920.9,3.0]
[1731101105390,0.70293471,2922.4,2920.9,3.0]
[1731101105589,0.7919,2922.3,2920.9,3.0]
[1731101106124,0.7919,2922.2,2920.7,3.28547705]
[1731101106341,0.8327,2922.1,2920.8,3.0]
[1731101106539,0.8327,2921.9,2920.8,3.0]
[1731101108428,0.771,2921.7,2920.8,3.0]
[1731101109097,0.8086,2921.6,2920.8,3.0]
[1731101110614,0.70293471,2921.6,2920.7,3.28547705]
[1731101110828,0.8086,2921.5,2920.7,3.28547705]
[1731101110983,0.8086,2921.5,2920.4,3.28547705]
[1731101111185,0.7925,2921.4,2920.4,3.28547705]
[1731101112024,0.8014,2921.3,2920.0,0.70930202]
[1731101112236,0.8014,2921.0,2919.9,4.17314275]